Workbook

Sheet Vstupné údaje kalkulačky
B1: KALKULAČKA NA VÝPOČET MZDY | K1: KONIEC OBDOBIA: | L1: 41372 | N1: NÁZOV SPOLOČNOSTI: | P1: ADVENTURE WORKS
B3: Identifikácia | C3: Meno zamestnanca | D3: Počet riadnych odpracovaných hodín | E3: Počet hodín dovolenky | F3: PN v hodinách | G3: Hodiny práce nadčas | H3: Sadzba za prácu nadčas | I3: Hrubá mzda | J3: Dane a zrážky | K3: Iné zrážky | L3: Čistá mzda | N3: Hodinová mzda | O3: Daňová skupina | P3: Štátne daňové zvýhodnenie | Q3: Daň štátu | R3: Daň z príjmu | S3: Sadzba soc. poistenia | T3: Sadzba zdravotného poistenia | U3: Celková zrážka dane | V3: Zrážka za poistné | W3: Iné pravidelné zrážky | X3: Celkové pravidelné zrážky
B4: 1001 | C4: Milan Mihálik | D4: 50 | E4: 5 | F4: 1 | I4: =SUM(Pracovníci[[#This Row],[Počet riadnych odpracovaných hodín]:[PN v hodinách]])*Pracovníci[[#This Row],[Hodinová mzda]]+Pracovníci[[#This Row],[Hodiny práce nadčas]]*Pracovníci[[#This Row],[Sadzba za prácu nadčas]] -> 560 | J4: =Pracovníci[[#This Row],[Hrubá mzda]]*Pracovníci[[#This Row],[Celková zrážka dane]] + Pracovníci[[#This Row],[Celkové pravidelné zrážky]] -> 273.08 | K4: 20 | L4: =Pracovníci[[#This Row],[Hrubá mzda]]-Pracovníci[[#This Row],[Dane a zrážky]]-Pracovníci[[#This Row],[Iné zrážky]] -> 266.92 | N4: 10 | O4: 1 | P4: 4 | Q4: 0.023 | R4: 0.28 | S4: 0.063 | T4: 0.0145 | U4: =SUM(Pracovníci[[#This Row],[Daň štátu]:[Sadzba zdravotného poistenia]]) -> 0.3805 | V4: 20 | W4: 40 | X4: =SUM(Pracovníci[[#This Row],[Zrážka za poistné]:[Iné pravidelné zrážky]]) -> 60
B5: 1002 | C5: Juraj Šimko | D5: 40 | I5: =SUM(Pracovníci[[#This Row],[Počet riadnych odpracovaných hodín]:[PN v hodinách]])*Pracovníci[[#This Row],[Hodinová mzda]]+Pracovníci[[#This Row],[Hodiny práce nadčas]]*Pracovníci[[#This Row],[Sadzba za prácu nadčas]] -> 320 | J5: =Pracovníci[[#This Row],[Hrubá mzda]]*Pracovníci[[#This Row],[Celková zrážka dane]] + Pracovníci[[#This Row],[Celkové pravidelné zrážky]] -> 131.76 | L5: =Pracovníci[[#This Row],[Hrubá mzda]]-Pracovníci[[#This Row],[Dane a zrážky]]-Pracovníci[[#This Row],[Iné zrážky]] -> 188.24 | N5: 8 | O5: 1 | P5: 1 | Q5: 0.023 | R5: 0.28 | S5: 0.063 | T5: 0.0145 | U5: =SUM(Pracovníci[[#This Row],[Daň štátu]:[Sadzba zdravotného poistenia]]) -> 0.3805 | V5: 0 | W5: 10 | X5: =SUM(Pracovníci[[#This Row],[Zrážka za poistné]:[Iné pravidelné zrážky]]) -> 10
B6: 1003 | C6: Andrea Beňová | D6: 35 | E6: 3 | I6: =SUM(Pracovníci[[#This Row],[Počet riadnych odpracovaných hodín]:[PN v hodinách]])*Pracovníci[[#This Row],[Hodinová mzda]]+Pracovníci[[#This Row],[Hodiny práce nadčas]]*Pracovníci[[#This Row],[Sadzba za prácu nadčas]] -> 532 | J6: =Pracovníci[[#This Row],[Hrubá mzda]]*Pracovníci[[#This Row],[Celková zrážka dane]] + Pracovníci[[#This Row],[Celkové pravidelné zrážky]] -> 240.426 | L6: =Pracovníci[[#This Row],[Hrubá mzda]]-Pracovníci[[#This Row],[Dane a zrážky]]-Pracovníci[[#This Row],[Iné zrážky]] -> 291.574 | N6: 14 | O6: 1 | P6: 3 | Q6: 0.023 | R6: 0.28 | S6: 0.063 | T6: 0.0145 | U6: =SUM(Pracovníci[[#This Row],[Daň štátu]:[Sadzba zdravotného poistenia]]) -> 0.3805 | V6: 18 | W6: 20 | X6: =SUM(Pracovníci[[#This Row],[Zrážka za poistné]:[Iné pravidelné zrážky]]) -> 38
B7: 1008 | C7: Karol Krištofek | D7: 50 | E7: 5 | F7: 1 | I7: =SUM(Pracovníci[[#This Row],[Počet riadnych odpracovaných hodín]:[PN v hodinách]])*Pracovníci[[#This Row],[Hodinová mzda]]+Pracovníci[[#This Row],[Hodiny práce nadčas]]*Pracovníci[[#This Row],[Sadzba za prácu nadčas]] -> 1120 | J7: =Pracovníci[[#This Row],[Hrubá mzda]]*Pracovníci[[#This Row],[Celková zrážka dane]] + Pracovníci[[#This Row],[Celkové pravidelné zrážky]] -> 441.16 | L7: =Pracovníci[[#This Row],[Hrubá mzda]]-Pracovníci[[#This Row],[Dane a zrážky]]-Pracovníci[[#This Row],[Iné zrážky]] -> 678.84 | N7: 20 | O7: 1 | P7: 0 | Q7: 0.023 | R7: 0.28 | S7: 0.063 | T7: 0.0145 | U7: =SUM(Pracovníci[[#This Row],[Daň štátu]:[Sadzba zdravotného poistenia]]) -> 0.3805 | V7: 15 | X7: =SUM(Pracovníci[[#This Row],[Zrážka za poistné]:[Iné pravidelné zrážky]]) -> 15
B8: 1011 | C8: Zuzana Nová | D8: 40 | G8: 2 | H8: 15 | I8: =SUM(Pracovníci[[#This Row],[Počet riadnych odpracovaných hodín]:[PN v hodinách]])*Pracovníci[[#This Row],[Hodinová mzda]]+Pracovníci[[#This Row],[Hodiny práce nadčas]]*Pracovníci[[#This Row],[Sadzba za prácu nadčas]] -> 430 | J8: =Pracovníci[[#This Row],[Hrubá mzda]]*Pracovníci[[#This Row],[Celková zrážka dane]] + Pracovníci[[#This Row],[Celkové pravidelné zrážky]] -> 223.615 | L8: =Pracovníci[[#This Row],[Hrubá mzda]]-Pracovníci[[#This Row],[Dane a zrážky]]-Pracovníci[[#This Row],[Iné zrážky]] -> 206.385 | N8: 10 | O8: 1 | P8: 0 | Q8: 0.023 | R8: 0.28 | S8: 0.063 | T8: 0.0145 | U8: =SUM(Pracovníci[[#This Row],[Daň štátu]:[Sadzba zdravotného poistenia]]) -> 0.3805 | V8: 20 | W8: 40 | X8: =SUM(Pracovníci[[#This Row],[Zrážka za poistné]:[Iné pravidelné zrážky]]) -> 60
B9: 1012 | C9: Peter Lehotský | D9: 40 | E9: 5 | F9: 1 | I9: =SUM(Pracovníci[[#This Row],[Počet riadnych odpracovaných hodín]:[PN v hodinách]])*Pracovníci[[#This Row],[Hodinová mzda]]+Pracovníci[[#This Row],[Hodiny práce nadčas]]*Pracovníci[[#This Row],[Sadzba za prácu nadčas]] -> 552 | J9: =Pracovníci[[#This Row],[Hrubá mzda]]*Pracovníci[[#This Row],[Celková zrážka dane]] + Pracovníci[[#This Row],[Celkové pravidelné zrážky]] -> 270.036 | L9: =Pracovníci[[#This Row],[Hrubá mzda]]-Pracovníci[[#This Row],[Dane a zrážky]]-Pracovníci[[#This Row],[Iné zrážky]] -> 281.964 | N9: 12 | O9: 1 | P9: 4 | Q9: 0.023 | R9: 0.28 | S9: 0.063 | T9: 0.0145 | U9: =SUM(Pracovníci[[#This Row],[Daň štátu]:[Sadzba zdravotného poistenia]]) -> 0.3805 | V9: 20 | W9: 40 | X9: =SUM(Pracovníci[[#This Row],[Zrážka za poistné]:[Iné pravidelné zrážky]]) -> 60
B10: 1025 | C10: Zuzana Nagyová | D10: 36 | F10: 2 | G10: 1 | H10: 18 | I10: =SUM(Pracovníci[[#This Row],[Počet riadnych odpracovaných hodín]:[PN v hodinách]])*Pracovníci[[#This Row],[Hodinová mzda]]+Pracovníci[[#This Row],[Hodiny práce nadčas]]*Pracovníci[[#This Row],[Sadzba za prácu nadčas]] -> 474 | J10: =Pracovníci[[#This Row],[Hrubá mzda]]*Pracovníci[[#This Row],[Celková zrážka dane]] + Pracovníci[[#This Row],[Celkové pravidelné zrážky]] -> 225.357 | K10: 25 | L10: =Pracovníci[[#This Row],[Hrubá mzda]]-Pracovníci[[#This Row],[Dane a zrážky]]-Pracovníci[[#This Row],[Iné zrážky]] -> 223.643 | N10: 12 | O10: 1 | P10: 2 | Q10: 0.023 | R10: 0.28 | S10: 0.063 | T10: 0.0145 | U10: =SUM(Pracovníci[[#This Row],[Daň štátu]:[Sadzba zdravotného poistenia]]) -> 0.3805 | V10: 25 | W10: 20 | X10: =SUM(Pracovníci[[#This Row],[Zrážka za poistné]:[Iné pravidelné zrážky]]) -> 45
B11: 1032 | C11: Martin Horváth | D11: 40 | E11: 5 | F11: 1 | I11: =SUM(Pracovníci[[#This Row],[Počet riadnych odpracovaných hodín]:[PN v hodinách]])*Pracovníci[[#This Row],[Hodinová mzda]]+Pracovníci[[#This Row],[Hodiny práce nadčas]]*Pracovníci[[#This Row],[Sadzba za prácu nadčas]] -> 460 | J11: =Pracovníci[[#This Row],[Hrubá mzda]]*Pracovníci[[#This Row],[Celková zrážka dane]] + Pracovníci[[#This Row],[Celkové pravidelné zrážky]] -> 175.03 | K11: 50 | L11: =Pracovníci[[#This Row],[Hrubá mzda]]-Pracovníci[[#This Row],[Dane a zrážky]]-Pracovníci[[#This Row],[Iné zrážky]] -> 234.97 | N11: 10 | O11: 1 | P11: 3 | Q11: 0.023 | R11: 0.28 | S11: 0.063 | T11: 0.0145 | U11: =SUM(Pracovníci[[#This Row],[Daň štátu]:[Sadzba zdravotného poistenia]]) -> 0.3805 | X11: =SUM(Pracovníci[[#This Row],[Zrážka za poistné]:[Iné pravidelné zrážky]]) -> 0
B12: 1049 | C12: Matej Gajdoš | D12: 40 | E12: 1 | I12: =SUM(Pracovníci[[#This Row],[Počet riadnych odpracovaných hodín]:[PN v hodinách]])*Pracovníci[[#This Row],[Hodinová mzda]]+Pracovníci[[#This Row],[Hodiny práce nadčas]]*Pracovníci[[#This Row],[Sadzba za prácu nadčas]] -> 615 | J12: =Pracovníci[[#This Row],[Hrubá mzda]]*Pracovníci[[#This Row],[Celková zrážka dane]] + Pracovníci[[#This Row],[Celkové pravidelné zrážky]] -> 259.0075 | K12: 23 | L12: =Pracovníci[[#This Row],[Hrubá mzda]]-Pracovníci[[#This Row],[Dane a zrážky]]-Pracovníci[[#This Row],[Iné zrážky]] -> 332.9925 | N12: 15 | O12: 1 | P12: 2 | Q12: 0.023 | R12: 0.28 | S12: 0.063 | T12: 0.0145 | U12: =SUM(Pracovníci[[#This Row],[Daň štátu]:[Sadzba zdravotného poistenia]]) -> 0.3805 | V12: 25 | X12: =SUM(Pracovníci[[#This Row],[Zrážka za poistné]:[Iné pravidelné zrážky]]) -> 25
B13: Celkovo | C13: =SUBTOTAL(103,Pracovníci[Meno zamestnanca]) -> 9 | D13: =SUBTOTAL(109,Pracovníci[Počet riadnych odpracovaných hodín]) -> 371 | E13: =SUBTOTAL(109,Pracovníci[Počet hodín dovolenky]) -> 24 | F13: =SUBTOTAL(109,Pracovníci[PN v hodinách]) -> 6 | G13: =SUBTOTAL(109,Pracovníci[Hodiny práce nadčas]) -> 3 | I13: =SUBTOTAL(109,Pracovníci[Hrubá mzda]) -> 5063 | J13: =SUBTOTAL(109,Pracovníci[Dane a zrážky]) -> 2239.4715 | K13: =SUBTOTAL(109,Pracovníci[Iné zrážky]) -> 118 | L13: =SUBTOTAL(109,Pracovníci[Čistá mzda]) -> 2705.5285 | V13: =SUBTOTAL(109,Pracovníci[Zrážka za poistné]) -> 143 | W13: =SUBTOTAL(109,Pracovníci[Iné pravidelné zrážky]) -> 170 | X13: =SUBTOTAL(109,Pracovníci[Celkové pravidelné zrážky]) -> 313

Sheet šablóna_výplatnej_pásky (hidden)
C2: =NázovSpoločnosti -> ADVENTURE WORKS
C3: OBDOBIE | D3: =KoniecObdobia -> 41372 | G3: MENO | H3: =IFERROR(INDEX(Pracovníci[Meno zamestnanca],Výplatnápáska),"") -> Milan Mihálik | K3: ČÍSLO ZAMESTNANCA | L3: =IFERROR(INDEX(Pracovníci[Identifikácia],Výplatnápáska),"") -> 1001
C4: Daňový stav | E4: =IFERROR(INDEX(Pracovníci[Daňová skupina],Výplatnápáska),"") -> 1 | G4: Daňové zvýhodnenie (formulár W-4) | I4: =IFERROR(INDEX(Pracovníci[Štátne daňové zvýhodnenie],Výplatnápáska),"") -> 4 | K4: Počet odpracovaných hodín | M4: =IFERROR(INDEX(Pracovníci[Počet riadnych odpracovaných hodín],Výplatnápáska),"") -> 50
C5: Hodinová sadzba | E5: =IFERROR(INDEX(Pracovníci[Hodinová mzda],Výplatnápáska),"") -> 10 | G5: Sadzba za prácu nadčas | I5: =IFERROR(INDEX(Pracovníci[Sadzba za prácu nadčas],Výplatnápáska),"") -> 0 | K5: PN v hodinách | M5: =IFERROR(INDEX(Pracovníci[PN v hodinách],Výplatnápáska),"") -> 1
C6: Sadzba sociálneho poistenia | E6: =IFERROR(INDEX(Pracovníci[Sadzba soc. poistenia],Výplatnápáska) * INDEX(Pracovníci[Hrubá mzda],Výplatnápáska),"") -> 35.28 | G6: Štátna daň z príjmu | I6: =IFERROR(INDEX(Pracovníci[Daň z príjmu],Výplatnápáska) * INDEX(Pracovníci[Hrubá mzda],Výplatnápáska),"") -> 156.8 | K6: Počet hodín dovolenky | M6: =IFERROR(INDEX(Pracovníci[Počet hodín dovolenky],Výplatnápáska),"") -> 5
C7: Sadzba zdravotného poistenia | E7: =IFERROR(INDEX(Pracovníci[Sadzba zdravotného poistenia],Výplatnápáska) * INDEX(Pracovníci[Hrubá mzda],Výplatnápáska),"") -> 8.12 | G7: Daň štátu | I7: =IFERROR(INDEX(Pracovníci[Daň štátu],Výplatnápáska) * INDEX(Pracovníci[Hrubá mzda],Výplatnápáska),"") -> 12.88 | K7: Hodiny práce nadčas | M7: =IFERROR(INDEX(Pracovníci[Hodiny práce nadčas],Výplatnápáska),"") -> 0
C8: Zrážka za poistné | E8: =IFERROR(INDEX(Pracovníci[Zrážka za poistné],Výplatnápáska),"") -> 20 | G8: Iné pravidelné zrážky | I8: =IFERROR(INDEX(Pracovníci[Iné pravidelné zrážky],Výplatnápáska),"") -> 40 | K8: Hrubá mzda | M8: =IFERROR(INDEX(Pracovníci[Hrubá mzda],Výplatnápáska),"") -> 560
C9: Dane a | E9: =IFERROR(INDEX(Pracovníci[Dane a zrážky],Výplatnápáska),"") -> 273.08 | G9: Iné zrážky | I9: =IFERROR(INDEX(Pracovníci[Iné zrážky],Výplatnápáska),"") -> 20 | K9: Celkové dane a zrážky | M9: =IFERROR(INDEX(Pracovníci[Dane a zrážky],Výplatnápáska) + INDEX(Pracovníci[Iné zrážky],Výplatnápáska),"") -> 293.08
C10: pravidelné zrážky
K11: ČISTÁ MZDA | M11: =IFERROR(INDEX(Pracovníci[Čistá mzda],Výplatnápáska),"") -> 266.92
C14: =NázovSpoločnosti -> ADVENTURE WORKS
C15: OBDOBIE | D15: =KoniecObdobia -> 41372 | G15: MENO | H15: =IFERROR(INDEX(Pracovníci[Meno zamestnanca],Výplatnápáska),"") -> Juraj Šimko | K15: ČÍSLO ZAMESTNANCA | L15: =IFERROR(INDEX(Pracovníci[Identifikácia],Výplatnápáska),"") -> 1002
C16: Daňový stav | E16: =IFERROR(INDEX(Pracovníci[Daňová skupina],Výplatnápáska),"") -> 1 | G16: Daňové zvýhodnenie (formulár W-4) | I16: =IFERROR(INDEX(Pracovníci[Štátne daňové zvýhodnenie],Výplatnápáska),"") -> 1 | K16: Počet odpracovaných hodín | M16: =IFERROR(INDEX(Pracovníci[Počet riadnych odpracovaných hodín],Výplatnápáska),"") -> 40
C17: Hodinová sadzba | E17: =IFERROR(INDEX(Pracovníci[Hodinová mzda],Výplatnápáska),"") -> 8 | G17: Sadzba za prácu nadčas | I17: =IFERROR(INDEX(Pracovníci[Sadzba za prácu nadčas],Výplatnápáska),"") -> 0 | K17: PN v hodinách | M17: =IFERROR(INDEX(Pracovníci[PN v hodinách],Výplatnápáska),"") -> 0
C18: Sadzba sociálneho poistenia | E18: =IFERROR(INDEX(Pracovníci[Sadzba soc. poistenia],Výplatnápáska) * INDEX(Pracovníci[Hrubá mzda],Výplatnápáska),"") -> 20.16 | G18: Štátna daň z príjmu | I18: =IFERROR(INDEX(Pracovníci[Daň z príjmu],Výplatnápáska) * INDEX(Pracovníci[Hrubá mzda],Výplatnápáska),"") -> 89.6 | K18: Počet hodín dovolenky | M18: =IFERROR(INDEX(Pracovníci[Počet hodín dovolenky],Výplatnápáska),"") -> 0
C19: Sadzba zdravotného poistenia | E19: =IFERROR(INDEX(Pracovníci[Sadzba zdravotného poistenia],Výplatnápáska) * INDEX(Pracovníci[Hrubá mzda],Výplatnápáska),"") -> 4.64 | G19: Daň štátu | I19: =IFERROR(INDEX(Pracovníci[Daň štátu],Výplatnápáska) * INDEX(Pracovníci[Hrubá mzda],Výplatnápáska),"") -> 7.36 | K19: Hodiny práce nadčas | M19: =IFERROR(INDEX(Pracovníci[Hodiny práce nadčas],Výplatnápáska),"") -> 0
C20: Zrážka za poistné | E20: =IFERROR(INDEX(Pracovníci[Zrážka za poistné],Výplatnápáska),"") -> 0 | G20: Iné pravidelné zrážky | I20: =IFERROR(INDEX(Pracovníci[Iné pravidelné zrážky],Výplatnápáska),"") -> 10 | K20: Hrubá mzda | M20: =IFERROR(INDEX(Pracovníci[Hrubá mzda],Výplatnápáska),"") -> 320
C21: Dane a | E21: =IFERROR(INDEX(Pracovníci[Dane a zrážky],Výplatnápáska),"") -> 131.76 | G21: Iné zrážky | I21: =IFERROR(INDEX(Pracovníci[Iné zrážky],Výplatnápáska),"") -> 0 | K21: Celkové dane a zrážky | M21: =IFERROR(INDEX(Pracovníci[Dane a zrážky],Výplatnápáska) + INDEX(Pracovníci[Iné zrážky],Výplatnápáska),"") -> 131.76
C22: pravidelné zrážky
K23: ČISTÁ MZDA | M23: =IFERROR(INDEX(Pracovníci[Čistá mzda],Výplatnápáska),"") -> 188.24
C26: =NázovSpoločnosti -> ADVENTURE WORKS
C27: OBDOBIE | D27: =KoniecObdobia -> 41372 | G27: MENO | H27: =IFERROR(INDEX(Pracovníci[Meno zamestnanca],Výplatnápáska),"") -> Andrea Beňová | K27: ČÍSLO ZAMESTNANCA | L27: =IFERROR(INDEX(Pracovníci[Identifikácia],Výplatnápáska),"") -> 1003
C28: Daňový stav | E28: =IFERROR(INDEX(Pracovníci[Daňová skupina],Výplatnápáska),"") -> 1 | G28: Daňové zvýhodnenie (formulár W-4) | I28: =IFERROR(INDEX(Pracovníci[Štátne daňové zvýhodnenie],Výplatnápáska),"") -> 3 | K28: Počet odpracovaných hodín | M28: =IFERROR(INDEX(Pracovníci[Počet riadnych odpracovaných hodín],Výplatnápáska),"") -> 35
C29: Hodinová sadzba | E29: =IFERROR(INDEX(Pracovníci[Hodinová mzda],Výplatnápáska),"") -> 14 | G29: Sadzba za prácu nadčas | I29: =IFERROR(INDEX(Pracovníci[Sadzba za prácu nadčas],Výplatnápáska),"") -> 0 | K29: PN v hodinách | M29: =IFERROR(INDEX(Pracovníci[PN v hodinách],Výplatnápáska),"") -> 0
C30: Sadzba sociálneho poistenia | E30: =IFERROR(INDEX(Pracovníci[Sadzba soc. poistenia],Výplatnápáska) * INDEX(Pracovníci[Hrubá mzda],Výplatnápáska),"") -> 33.516 | G30: Štátna daň z príjmu | I30: =IFERROR(INDEX(Pracovníci[Daň z príjmu],Výplatnápáska) * INDEX(Pracovníci[Hrubá mzda],Výplatnápáska),"") -> 148.96 | K30: Počet hodín dovolenky | M30: =IFERROR(INDEX(Pracovníci[Počet hodín dovolenky],Výplatnápáska),"") -> 3
C31: Sadzba zdravotného poistenia | E31: =IFERROR(INDEX(Pracovníci[Sadzba zdravotného poistenia],Výplatnápáska) * INDEX(Pracovníci[Hrubá mzda],Výplatnápáska),"") -> 7.714 | G31: Daň štátu | I31: =IFERROR(INDEX(Pracovníci[Daň štátu],Výplatnápáska) * INDEX(Pracovníci[Hrubá mzda],Výplatnápáska),"") -> 12.236 | K31: Hodiny práce nadčas | M31: =IFERROR(INDEX(Pracovníci[Hodiny práce nadčas],Výplatnápáska),"") -> 0
C32: Zrážka za poistné | E32: =IFERROR(INDEX(Pracovníci[Zrážka za poistné],Výplatnápáska),"") -> 18 | G32: Iné pravidelné zrážky | I32: =IFERROR(INDEX(Pracovníci[Iné pravidelné zrážky],Výplatnápáska),"") -> 20 | K32: Hrubá mzda | M32: =IFERROR(INDEX(Pracovníci[Hrubá mzda],Výplatnápáska),"") -> 532
C33: Dane a | E33: =IFERROR(INDEX(Pracovníci[Dane a zrážky],Výplatnápáska),"") -> 240.426 | G33: Iné zrážky | I33: =IFERROR(INDEX(Pracovníci[Iné zrážky],Výplatnápáska),"") -> 0 | K33: Celkové dane a zrážky | M33: =IFERROR(INDEX(Pracovníci[Dane a zrážky],Výplatnápáska) + INDEX(Pracovníci[Iné zrážky],Výplatnápáska),"") -> 240.426
C34: pravidelné zrážky
K35: ČISTÁ MZDA | M35: =IFERROR(INDEX(Pracovníci[Čistá mzda],Výplatnápáska),"") -> 291.574
C38: =NázovSpoločnosti -> ADVENTURE WORKS
C39: OBDOBIE | D39: =KoniecObdobia -> 41372 | G39: MENO | H39: =IFERROR(INDEX(Pracovníci[Meno zamestnanca],Výplatnápáska),"") -> Karol Krištofek | K39: ČÍSLO ZAMESTNANCA | L39: =IFERROR(INDEX(Pracovníci[Identifikácia],Výplatnápáska),"") -> 1008
C40: Daňový stav | E40: =IFERROR(INDEX(Pracovníci[Daňová skupina],Výplatnápáska),"") -> 1 | G40: Daňové zvýhodnenie (formulár W-4) | I40: =IFERROR(INDEX(Pracovníci[Štátne daňové zvýhodnenie],Výplatnápáska),"") -> 0 | K40: Počet odpracovaných hodín | M40: =IFERROR(INDEX(Pracovníci[Počet riadnych odpracovaných hodín],Výplatnápáska),"") -> 50
C41: Hodinová sadzba | E41: =IFERROR(INDEX(Pracovníci[Hodinová mzda],Výplatnápáska),"") -> 20 | G41: Sadzba za prácu nadčas | I41: =IFERROR(INDEX(Pracovníci[Sadzba za prácu nadčas],Výplatnápáska),"") -> 0 | K41: PN v hodinách | M41: =IFERROR(INDEX(Pracovníci[PN v hodinách],Výplatnápáska),"") -> 1
C42: Sadzba sociálneho poistenia | E42: =IFERROR(INDEX(Pracovníci[Sadzba soc. poistenia],Výplatnápáska) * INDEX(Pracovníci[Hrubá mzda],Výplatnápáska),"") -> 70.56 | G42: Štátna daň z príjmu | I42: =IFERROR(INDEX(Pracovníci[Daň z príjmu],Výplatnápáska) * INDEX(Pracovníci[Hrubá mzda],Výplatnápáska),"") -> 313.6 | K42: Počet hodín dovolenky | M42: =IFERROR(INDEX(Pracovníci[Počet hodín dovolenky],Výplatnápáska),"") -> 5
C43: Sadzba zdravotného poistenia | E43: =IFERROR(INDEX(Pracovníci[Sadzba zdravotného poistenia],Výplatnápáska) * INDEX(Pracovníci[Hrubá mzda],Výplatnápáska),"") -> 16.24 | G43: Daň štátu | I43: =IFERROR(INDEX(Pracovníci[Daň štátu],Výplatnápáska) * INDEX(Pracovníci[Hrubá mzda],Výplatnápáska),"") -> 25.76 | K43: Hodiny práce nadčas | M43: =IFERROR(INDEX(Pracovníci[Hodiny práce nadčas],Výplatnápáska),"") -> 0
C44: Zrážka za poistné | E44: =IFERROR(INDEX(Pracovníci[Zrážka za poistné],Výplatnápáska),"") -> 15 | G44: Iné pravidelné zrážky | I44: =IFERROR(INDEX(Pracovníci[Iné pravidelné zrážky],Výplatnápáska),"") -> 0 | K44: Hrubá mzda | M44: =IFERROR(INDEX(Pracovníci[Hrubá mzda],Výplatnápáska),"") -> 1120
C45: Dane a | E45: =IFERROR(INDEX(Pracovníci[Dane a zrážky],Výplatnápáska),"") -> 441.16 | G45: Iné zrážky | I45: =IFERROR(INDEX(Pracovníci[Iné zrážky],Výplatnápáska),"") -> 0 | K45: Celkové dane a zrážky | M45: =IFERROR(INDEX(Pracovníci[Dane a zrážky],Výplatnápáska) + INDEX(Pracovníci[Iné zrážky],Výplatnápáska),"") -> 441.16
C46: pravidelné zrážky
K47: ČISTÁ MZDA | M47: =IFERROR(INDEX(Pracovníci[Čistá mzda],Výplatnápáska),"") -> 678.84
